{"text_format":"2","workbook":"xlsx","n_sheets":1,"sheets":["Приожение 4"],"not_rendered":{"charts":0,"images":0,"macros":0,"external_links":0,"defined_names":1,"comments":0,"pivot_tables":0},"unopened":[],"bounds":{"document_bytes":16777216,"sheet_cells":100000,"run_cost":"one","rows_first":2000,"rows_last":500,"rows_between":2000,"halvings":0,"cell_chars":16384,"cell_head_chars":4096},"cells_cut":0,"cells_raw":0,"read":"whole","date_system":"1900"}

{"sheet":"Приожение 4","index":0,"n_rows":20,"n_cols":85,"rows_kept":20,"cut":false,"hidden":false,"merged":[[0,3,0,5],[3,1,3,5],[3,6,3,7],[3,13,3,14],[3,8,3,12],[1,0,1,7],[3,29,3,33],[3,34,3,35],[3,22,3,26],[3,27,3,28],[3,15,3,19],[3,20,3,21],[4,36,4,40],[3,78,3,82],[3,83,3,84],[3,64,3,68],[3,69,3,70],[3,62,3,63],[3,76,3,77],[3,36,3,40],[3,41,3,42],[3,43,3,47],[3,48,3,49],[4,48,4,49],[4,50,4,54],[4,55,4,56],[4,57,4,61],[0,82,0,84],[3,0,5,0],[4,20,4,21],[4,1,4,5],[3,71,3,75],[4,6,4,7],[4,8,4,12],[4,13,4,14],[4,15,4,19],[4,41,4,42],[4,22,4,26],[4,27,4,28],[4,29,4,33],[4,83,4,84],[4,43,4,47],[4,34,4,35],[4,78,4,82],[3,57,3,61],[3,50,3,54],[3,55,3,56],[4,62,4,63],[4,64,4,68],[4,69,4,70],[4,71,4,75],[4,76,4,77]]}
[]
["                 ОБЪЕМЫ РЕАЛИЗАЦИИ И ФИНАНСИРОВАНИЯ\n    мероприятий в рамках пообъектного плана-графика догазификации"]
[]
["Наименование газораспределительной организации","                                                   2021 год",{"$nulls":4},"                 2021 год",null,"                2022 год",{"$nulls":4},"     2022 год",null,"2023 год",{"$nulls":4},"2023 год",null,"2024 год",{"$nulls":4},"2024 год",null,"2025 год",{"$nulls":4},"2025 год",null,"2026 год",{"$nulls":4},"2026 год",null,"2027 год",{"$nulls":4},"2027 год",null,"2028 год",{"$nulls":4},"2028 год",null,"2029 год",{"$nulls":4},"2029 год",null,"2030 год",{"$nulls":4},"2030 год",null,"2031 год",{"$nulls":4},"2031 год",null,"2032 год",{"$nulls":4},"2032 год"]
[null,"Объем финансирования мероприятия в рамках\nпообъектного плана-графика догазификации (тыс. рублей)\nс налогом на добавленную стоимость",{"$nulls":4},"Объем реализации мероприятия в рамках пообъектного плана-графика догазификации",null,"Объем финансирования мероприятия в рамках\nпообъектного плана-графика догазификации (тыс. рублей)\nс налогом на добавленную стоимость",{"$nulls":4},"Объем реализации мероприятия в рамках пообъектного плана-графика догазификации",null,"Объем финансирования мероприятия в рамках\nпообъектного плана-графика догазификации (тыс. рублей)\nс налогом на добавленную стоимость",{"$nulls":4},"Объем реализации мероприятия в рамках пообъектного плана-графика догазификации",null,"Объем финансирования мероприятия в рамках\nпообъектного плана-графика догазификации (тыс. рублей)\nс налогом на добавленную стоимость",{"$nulls":4},"Объем реализации мероприятия в рамках пообъектного плана-графика догазификации",null,"Объем финансирования мероприятия в рамках\nпообъектного плана-графика догазификации (тыс. рублей)\nс налогом на добавленную стоимость",{"$nulls":4},"Объем реализации мероприятия в рамках пообъектного плана-графика догазификации",null,"Объем финансирования мероприятия в рамках\nпообъектного плана-графика догазификации (тыс. рублей)\nс налогом на добавленную стоимость",{"$nulls":4},"Объем реализации мероприятия в рамках пообъектного плана-графика догазификации",null,"Объем финансирования мероприятия в рамках\nпообъектного плана-графика догазификации (тыс. рублей)\nс налогом на добавленную стоимость",{"$nulls":4},"Объем реализации мероприятия в рамках пообъектного плана-графика догазификации",null,"Объем финансирования мероприятия в рамках\nпообъектного плана-графика догазификации (тыс. рублей)\nс налогом на добавленную стоимость",{"$nulls":4},"Объем реализации мероприятия в рамках пообъектного плана-графика догазификации",null,"Объем финансирования мероприятия в рамках\nпообъектного плана-графика догазификации (тыс. рублей)\nс налогом на добавленную стоимость",{"$nulls":4},"Объем реализации мероприятия в рамках пообъектного плана-графика догазификации",null,"Объем финансирования мероприятия в рамках\nпообъектного плана-графика догазификации (тыс. рублей)\nс налогом на добавленную стоимость",{"$nulls":4},"Объем реализации мероприятия в рамках пообъектного плана-графика догазификации",null,"Объем финансирования мероприятия в рамках\nпообъектного плана-графика догазификации (тыс. рублей)\nс налогом на добавленную стоимость",{"$nulls":4},"Объем реализации мероприятия в рамках пообъектного плана-графика догазификации",null,"Объем финансирования мероприятия в рамках\nпообъектного плана-графика догазификации (тыс. рублей)\nс налогом на добавленную стоимость",{"$nulls":4},"Объем реализации мероприятия в рамках пообъектного плана-графика догазификации"]
[null,"Всего, в том числе","средства от применения тарифа на услуги по транспорти-ровке газа по газораспреде-лительным сетям","средства от применения специальной надбавки к тарифу на услуги по транспорти-ровке газа по газораспреде-лительным сетям","средства единого оператора газификации и (или) регионального оператора газификации ","иные средства","Факт освоения вложений (тыс. рублей) с налогом на добавленную стоимость  ","Факт ввода основных средств (тыс. рублей) без налога на добавленную стоимость","Всего, в том числе","средства от применения тарифа на услуги по транспортировке газа по газораспреде-лительным сетям","средства от применения специальной надбавки к тарифу на услуги по транспорти-ровке газа по газораспреде-лительным сетям","средства единого оператора газификации и (или) регионального оператора газификации ","иные средства","Факт освоения вложений (тыс. рублей) с налогом на добавленную стоимость  ","Факт ввода основных средств (тыс. рублей) без налога на добавленную стоимость","Всего, в том числе","средства от применения тарифа на услуги по транспортировке газа по газораспреде-лительным сетям","средства от применения специальной надбавки к тарифу на услуги по транспорти-ровке газа по газораспределительным сетям","средства единого оператора газификации и (или) регионального оператора газификации ","иные средства","Факт освоения вложений (тыс. рублей) с налогом на добавленную стоимость  ","Факт ввода основных средств (тыс. рублей) без налога на добавленную стоимость","Всего, в том числе","средства от применения тарифа на услуги по транспортировке газа по газораспреде-лительным сетям","средства от применения специальной надбавки к тарифу на услуги по транспорти-ровке газа по газораспреде-лительным сетям","средства единого оператора газификации и (или) регионального оператора газификации ","иные средства","План освоения вложений (тыс. рублей) с налогом на добавленную стоимость  ","План ввода основных средств (тыс. рублей) без налога на добавленную стоимость","Всего, в том числе","средства от применения тарифа на услуги по транспортировке газа по газораспреде-лительным сетям","средства от применения специальной надбавки к тарифу на услуги по транспорти-ровке газа по газораспреде-лительным сетям","средства единого оператора газификации и (или) регионального оператора газификации ","иные средства","План освоения вложений (тыс. рублей) с налогом на добавленную стоимость  ","План ввода основных средств (тыс. рублей) без налога на добавленную стоимость","Всего, в том числе","средства от применения тарифа на услуги по транспортировке газа по газораспреде-лительным сетям","средства от применения специальной надбавки к тарифу на услуги по транспорти-ровке газа по газораспреде-лительным сетям","средства единого оператора газификации и (или) регионального оператора газификации ","иные средства","План освоения вложений (тыс. рублей) с налогом на добавленную стоимость  ","План ввода основных средств (тыс. рублей) без налога на добавленную стоимость","Всего, в том числе","средства от применения тарифа на услуги по транспортировке газа по газораспреде-лительным сетям","средства от применения специальной надбавки к тарифу на услуги по транспорти-ровке газа по газораспреде-лительным сетям","средства единого оператора газификации и (или) регионального оператора газификации ","иные средства","План освоения вложений (тыс. рублей) с налогом на добавленную стоимость  ","План ввода основных средств (тыс. рублей) без налога на добавленную стоимость","Всего, в том числе","средства от применения тарифа на услуги по транспортировке газа по газораспреде-лительным сетям","средства от применения специальной надбавки к тарифу на услуги по транспорти-ровке газа по газораспреде-лительным сетям","средства единого оператора газификации и (или) регионального оператора газификации ","иные средства","План освоения вложений (тыс. рублей) с налогом на добавленную стоимость  ","План ввода основных средств (тыс. рублей) без налога на добавленную стоимость","Всего, в том числе","средства от применения тарифа на услуги по транспортировке газа по газораспреде-лительным сетям","средства от применения специальной надбавки к тарифу на услуги по транспорти-ровке газа по газораспреде-лительным сетям","средства единого оператора газификации и (или) регионального оператора газификации ","иные средства","План освоения вложений (тыс. рублей) с налогом на добавленную стоимость  ","План ввода основных средств (тыс. рублей) без налога на добавленную стоимость","Всего, в том числе","средства от применения тарифа на услуги по транспортировке газа по газораспреде-лительным сетям","средства от применения специальной надбавки к тарифу на услуги по транспорти-ровке газа по газораспреде-лительным сетям","средства единого оператора газификации и (или) регионального оператора газификации ","иные средства","План освоения вложений (тыс. рублей) с налогом на добавленную стоимость  ","План ввода основных средств (тыс. рублей) без налога на добавленную стоимость","Всего, в том числе","средства от применения тарифа на услуги по транспортировке газа по газораспреде-лительным сетям","средства от применения специальной надбавки к тарифу на услуги по транспорти-ровке газа по газораспреде-лительным сетям","средства единого оператора газификации и (или) регионального оператора газификации ","иные средства","План освоения вложений (тыс. рублей) с налогом на добавленную стоимость  ","План ввода основных средств (тыс. рублей) без налога на добавленную стоимость","Всего, в том числе","средства от применения тарифа на услуги по транспортировке газа по газораспреде-лительным сетям","средства от применения специальной надбавки к тарифу на услуги по транспорти-ровке газа по газораспреде-лительным сетям","средства единого оператора газификации и (или) регионального оператора газификации ","иные средства","План освоения вложений (тыс. рублей) с налогом на добавленную стоимость  ","План ввода основных средств (тыс. рублей) без налога на добавленную стоимость"]
[1,2,3,4,5,6,7,8,9,10,11,12,13,14,15,16,17,18,19,20,21,22,23,24,25,26,27,28,29,30,31,32,33,34,35,36,37,38,39,40,41,42,43,44,45,46,47,48,49,50,51,52,53,54,55,56,57,58,59,60,61,62,63,64,65,66,67,68,69,70,71,72,73,74,75,76,77,78,79,80,81,82,83,84,85]
["АО «Газпром газораспределение Челябинск»",{"$f":"SUM(C8,D8,F8,E8)","v":0},0,0,0,0,0,0,1003739.05,0,0,1003739.05,0,1003739.05,760010.84,1866524.17,0,43467.199999999997,1818710.4111599999,4346.55728,1866524.17,1631875.18,8903329.6999999993,0,58849.68,8844480.0199999996,0,8903329.6999999993,7419441.4100000001,4274176.1399999997,0,0,4274176.1399999997,0,4274176.1399999997,3561813.45,50425.67,0,0,50425.67,0,50425.67,42021.39,100317.74,0,0,100317.74,0,100317.74,83598.12,121395.14,0,0,121395.14,0,121395.14,101162.62,69101.850000000006,0,0,69101.850000000006,0,69101.850000000006,57584.87,3201.63,0,0,3201.63,0,3201.63,2668.03,0,0,0,0,0,0,0,0,0,0,0,0,0,0]
["АО «Челябинскгоргаз»",{"$f":"SUM(C9,D9,F9,E9)","v":0},0,0,0,0,0,0,334527.46000000002,0,0,312577.2,21950.26,119967.15,33009.550000000003,24133.759999999998,0,0,0,24133.759999999998,458288.55,124695.03,725934.85,0,0,698527.97,27406.880000000001,506340.37,746125.48,604400,0,0,600000,4400,604400,200000,204400,0,0,200000,4400,204400,200000,104400,0,0,100000,4400,104400,200000,53300,0,0,50000,3300,53300,150000,103850,0,0,100000,3850,103850,175000,202994.65,0,0,200000,2994.65,202994.65,136120.54,0,0,0,0,0,0,0,0,0,0,0,0,0,0]
["ООО «Магнитогорскгазстрой»",0,0,0,0,0,0,0,5436.1,0,5436.1,0,0,5436.1,425.1,3833.1,0,3520.4,0,312.7,3833.1,4441.3,48752.4,0,3520.8,45231.6,0,{"$f":"SUM(Z10,Y10)","v":48752.4},43484.95,4500,0,4500,0,0,4500,3750,0,0,0,0,0,0,0,0,0,0,0,0,0,0,0,0,0,0,0,{"$f":"SUM(BB10,BA10)","v":0},0,0,0,0,0,0,{"$f":"SUM(BI10,BH10)","v":0},0,0,0,0,0,0,0,0,0,0,0,0,0,0,0,0,0,0,0,0,0,0]
["АО «Трансэнерго»",419.43,0,419.43,0,0,419.43,349.53,5756.26,0,1247.43,0,4508.83,5756.27,4796.8900000000003,26491.919999999998,0,2338.3033099999998,24153.62,0,26491.919999999998,22076.6,{"$f":"SUM(X11:AA11)","v":47875.016043999989},0,5544.73,{"$f":"(431498+27276118.38+1325000+6241322+1299.99)*1.2/1000","v":42330.286043999993},0,{"$f":"W11","v":47875.016043999989},{"$f":"AB11/1.2","v":39895.846703333329},{"$f":"SUM(AE11:AH11)","v":61946.79088},0,6175,{"$f":"(41111.3424+5365.15)*1.2","v":55771.79088},0,{"$f":"AD11","v":61946.79088},{"$f":"AI11/1.2","v":51622.325733333339},{"$f":"SUM(AL11:AO11)","v":49104.905703999997},0,6175,{"$f":"(30525.7104+1.31102+5247.9)*1.2","v":42929.905703999997},0,{"$f":"AK11","v":49104.905703999997},{"$f":"AP11/1.2","v":40920.754753333335},0,0,0,0,0,0,0,0,0,0,0,0,0,0,0,0,0,0,0,0,0,0,0,0,0,0,0,0,0,0,0,0,0,0,0,0,0,0,0,0,0,0]
["ООО «Классик»",0,0,0,0,0,0,0,47961.83,0,0,47961.83,0,0,0,0,0,0,0,0,47961.83,47961.83,121650,0,0,121650,0,121650,121650,43900,0,0,43900,0,43900,43900,8640,0,0,8640,0,8640,8640,214000,0,0,214000,0,214000,214000,152300,0,0,152300,0,152300,152300,107200,0,0,107200,0,107200,107200,22200,0,0,22200,0,22200,22200,19600,0,0,19600,0,19600,19600,8348.6200000000008,0,0,8348.6200000000008,0,8348.6200000000008,8348.6200000000008]
["ООО «Стандарт Лимит»",0,0,0,0,0,0,0,0,0,0,0,0,0,0,0,0,0,0,0,0,0,0,0,0,0,0,0,0,0,0,0,0,0,0,0,0,0,0,0,0,0,0,724.29,0,0,724.29,0,724.29,603.58000000000004,0,0,0,0,0,0,0,0,0,0,0,0,0,0,0,0,0,0,0,0,0,0,0,0,0,0,0,0,0,0,0,0,0,0,0]
["МУП «МПОЭ» г. Трехгорный",0,0,0,0,0,0,0,0,0,0,0,0,0,0,2867.83,2867.83,0,0,0,2867.83,305.81,3856,3856,0,0,0,3856,5297.38,0,0,0,0,0,0,0,0,0,0,0,0,0,0,0,0,0,0,0,0,0,0,0,0,0,0,0,0,0,0,0,0,0,0,0,0,0,0,0,0,0,0,0,0,0,0,0,0,0,0,0,0,0,0,0,0]
["ООО «Партнер-Газ»",0,0,0,0,0,0,0,15992.33,0,0,15992.33,0,8493.5400000000009,0,32241.11,0,0,32241.11,0,35064.769999999997,25107,89500,0,0,82000,7500,94175.13,112626.44,117992.38,0,0,18742.38,99250,117992.38,117992.38,0,0,0,0,0,0,0,0,0,0,0,0,0,0,0,0,0,0,0,0,0,0,0,0,0,0,0,0,0,0,0,0,0,0,0,0,0,0,0,0,0,0,0,0,0,0,0,0,0]
["МУП «Магнитогорские газовые сети»",0,0,0,0,0,0,0,41003.230000000003,0,3270.45,30508.03,7224.75,21738.36,0,101843.76,0,5711.91,93367.22,2764.63,60819.58,53138.62,318389.62,0,5588.62,312801,0,403385.26,254523.08,235747.89,0,5923.2,229824.69,0,187366.76,259877.41,31695.68,0,6159.6,25536.080000000002,0,55370.22,39694.370000000003,0,0,0,0,0,0,0,0,0,0,0,0,0,0,0,0,0,0,0,0,0,0,0,0,0,0,0,0,0,0,0,0,0,0,0,0,0,0,0,0,0,0]
["ООО «Озерскгаз»",0,0,0,0,0,0,0,0,0,0,0,0,0,0,0,0,0,0,0,0,0,1291,0,1291,0,0,1291,1075.83,1291,0,1291,0,0,1291,1075.83,0,0,0,0,0,0,0,0,0,0,0,0,0,0,0,0,0,0,0,0,0,0,0,0,0,0,0,0,0,0,0,0,0,0,0,2048,0,2048,0,0,2048,1706.67,0,0,0,0,0,0,0]
["ООО «Тополь М»",82,0,0,0,82,82,0,21660.48,0,0,21660.48,0,21660.48,0,46682.3,0,0,46682.3,0,46682.3,7806.04,120000,0,0,120000,0,120000,180618.74,61575.22,0,0,61575.22,0,61575.22,61575.22,100000,0,0,100000,0,100000,100000,0,0,0,0,0,0,0,0,0,0,0,0,0,0,0,0,0,0,0,0,0,0,0,0,0,0,0,0,0,0,0,0,0,0,0,0,0,0,0,0,0,0]
["ООО «Газэнергосервис»",0,0,0,0,0,0,0,0,0,0,0,0,0,0,2245.3200000000002,0,0,0,2245.3200000000002,2245.3200000000002,1871.1,1152.47,0,0,0,1152.47,1152.47,960.39,0,0,0,0,0,0,0,0,0,0,0,0,0,0,0,0,0,0,0,0,0,0,0,0,0,0,0,0,0,0,0,0,0,0,0,0,0,0,0,0,0,0,0,0,0,0,0,0,0,0,0,0,0,0,0,0]
["Итого:",{"$f":"SUM(B8:B19)","v":501.43},0,419.43,0,82,501.43,349.53,1476076.7400000002,0,9953.98,1432438.9200000002,33683.839999999997,1186790.9500000002,798242.38,2106863.27,2867.83,55037.813309999998,2015154.6611600001,33802.967280000004,2550779.3699999996,1919278.5100000005,10381731.056043999,3856,74794.83,10267020.876044,36059.350000000006,10251807.346044,8925699.5467033349,5405529.4208799992,0,17889.2,5283990.2208799999,{"$f":"SUM(AH8:AH19)","v":103650},5357148.2908799993,4301606.6157333329,444266.25570399995,0,12334.6,427531.65570399998,4400,467940.79570399993,431276.51475333335,419442.02999999997,0,0,415042.02999999997,4400,419442.02999999997,498201.7,326995.14,0,0,323695.14,3300,326995.14,403462.62,280151.84999999998,0,0,276301.84999999998,3850,280151.84999999998,339784.87,228396.28,0,0,225401.63,2994.65,228396.28,160988.57,21648,0,2048,19600,0,21648,21306.67,8348.6200000000008,0,0,8348.6200000000008,0,8348.6200000000008,8348.6200000000008]